Cogmind - Beta 17 @@@ ROGUE MODE // 2026.07.20 @ 21:23:48 Player: teag2 Result: Destroyed by BW-47X(j) with Overtuned Pulse Rifle Performance ------------- Evolutions (1) 500 Regions Visited (6) 1200 Robots Destroyed (83) 415 Value Destroyed (2464) 2464 Prototype IDs (14) 280 Alien Tech Used (0) 0 Bonus (9855) 9855 TOTAL SCORE: 14714 Bonus ------- High Alert Combat Kills 27 Follower Combat Kills 566 Prayed to X0-1V1 5000 Major X0-1V1 Interference 4050 Registered with UFD 300 Friendly Fire -88 Cogmind --------- Core Integrity 0/250 Matter 278/300 Energy 445/445 System Corruption 1% Temperature Cool (37) Movement Treading (160) Location -9/Scraptown Parts ------- > --- POWER (2) -------- Improved Ion Engine Cooled Ion Engine > --- PROPULSION (5) --- Light Treads Light Treads (fused) Light Treads Improved Treads Improved Treads > --- UTILITY (2) ------ Large Storage Unit Light Armor Plating > --- WEAPON (1) ------- Rocket Launcher > --- INVENTORY (15) --- Cooled Ion Engine Nuclear Core Improved Treads Improved Treads Experimental Terrain Scanner Particle Charger A0-MCA's Component Scanner Advanced Beam Cannon Plasma Cannon Minigun CPS Tube (2) CPS Tube (2) Large Botcube Peak State ------------ > --- POWER ------------ Heavy Ion Engine > --- PROPULSION ------- Light Treads Light Treads Light Treads Improved Treads > --- UTILITY ---------- Large Storage Unit Light Armor Plating X0-1V1's Piety Tracker > --- WEAPON ----------- Improved Heavy Laser > --- INVENTORY -------- Improved Ion Engine Nuclear Core Light Nuclear Core Light Treads Improved Treads Improved Treads Particle Charger Hacking Suite Particle Cannon Battle Rifle Improved Assault Rifle Rocket Launcher Rocket Launcher Great Maul [Rating: 32] Favorites ----------- Power Cooled Ion Engine Engine Cooled Ion Engine Power Core Light Nuclear Core Propulsion Light Treads Treads Light Treads Utility Large Storage Unit Device X0-1V1's Piety Tracker Storage Large Storage Unit Hackware Hacking Suite Protection Light Armor Plating Weapon Heavy Particle Cannon Energy Gun Improved Heavy Laser Energy Cannon Heavy Particle Cannon Ballistic Gun Improved Assault Rifle Launcher Rocket Launcher Build | -11 -10 -10 -9 -9 -9 -9 ------- Run | Yrd Mat Min Mat Sto Rec Scr Slots Evolved 2 | . . . 2 . . . Power . | . . . . . . . Propulsion 1 | . . . 1 . . . Utility 1 | . . . 1 . . . Weapon . | . . . . . . . Parts Attached 55 | 4 18 3 7 18 2 3 Power 6 | . 2 1 1 1 1 . Engine 5 | . 1 1 1 1 1 . Core 1 | . 1 . . . . . Reactor . | . . . . . . . Propulsion 14 | 2 2 . 2 7 . 1 Treads 14 | 2 2 . 2 7 . 1 Leg . | . . . . . . . Wheel . | . . . . . . . Hover . | . . . . . . . Flight . | . . . . . . . Utility 19 | . 8 . 4 5 1 1 Device 9 | . 4 . 3 2 . . Storage 4 | . 4 . . . . . Processor . | . . . . . . . Hackware 2 | . . . . 1 1 . Protection 4 | . . . 1 2 . 1 Artifact . | . . . . . . . Weapon 16 | 2 6 2 . 5 . 1 Energy Gun 2 | . 1 . . 1 . . Energy Cannon 5 | . 3 1 . 1 . . Ballistic Gun 7 | 2 2 1 . 1 . 1 Ballistic Cannon . | . . . . . . . Launcher 2 | . . . . 2 . . Special Weapon . | . . . . . . . Impact Weapon . | . . . . . . . Slashing Weapon . | . . . . . . . Piercing Weapon . | . . . . . . . Special Melee Weapon . | . . . . . . . Unidentified Prototypes 5 | . 2 . 1 2 . . Parts Lost 17 | . 4 . 2 11 . . Power 1 | . . . . 1 . . Propulsion 5 | . 1 . 1 3 . . Utility 8 | . 1 . 1 6 . . Weapon 3 | . 2 . . 1 . . Highest Loss Streak 6 | . 2 . 1 6 . . To Critical Strikes . | . . . . . . . Average Backups 12 | 2 11 13 13 14 14 13 Power 2 | 1 1 2 3 3 2 2 Propulsion 2 | . 3 3 1 1 2 2 Utility 2 | . 3 4 2 2 1 2 Weapon 5 | . 3 3 5 6 7 5 Tool/Special . | . . . . . . . Unused Backups 23 | . 2 4 2 . . 15 Power 5 | . 1 1 1 . . 2 Propulsion 2 | . . . . . . 2 Utility 6 | . . 1 . . . 5 Weapon 8 | . 1 2 1 . . 4 Tool/Special 2 | . . . . . . 2 Average Slot Usage (%) 96 | . 95 99 96 93 99 97 Engine 11 | . 2 9 11 10 19 20 Core 3 | . 9 4 . . . . Treads 37 | . 26 28 30 39 50 50 Device 11 | . 13 16 29 10 3 . Storage 11 | . 13 14 11 10 10 10 Hackware 2 | . . . . 5 6 2 Protection 3 | . . . 2 7 . 7 Energy Cannon 8 | . 13 7 11 8 9 . Ballistic Gun 6 | . 13 17 . . . 7 Peak Build Rating 32 | 4 26 27 30 32 32 24 Average Rating 20 | 3 12 26 29 26 25 21 On Entrance 19 | . 4 26 26 30 31 19 Avg Prop Armor Cover (%) . | . . . . . . . Naked Turns . | . . . . . . . Heaviest Build 91 | 3 91 36 43 41 40 42 Greatest Support 106 | 40 40 40 60 103 103 106 Greatest Overweight (x) 7 | . 7 . 1 . . . Average Overweight (x) . | . . . . . . . Largest Inventory Capacity 25 | 5 25 15 15 15 15 15 Average Capacity 14 | 5 14 15 15 15 15 15 Most Carried 15 | 4 15 15 15 15 15 15 Average Carried 13 | 2 11 13 13 14 14 14 Final Capacity 15 | 5 15 15 15 15 15 15 Final Carried 15 | 3 13 15 15 15 15 14 Class Distribution -------------------- 61% | Mutant 38% | Scavenger-Mutant Dominant Class ---------------- Mutant | -10/Materials Mutant | -10/Mines Mutant | -9/Materials Mutant | -9/Storage Scavenger-Mutant | -9/Recycling Scavenger-Mutant | -9/Scraptown Resources | -11 -10 -10 -9 -9 -9 -9 ----------- Run | Yrd Mat Min Mat Sto Rec Scr Matter Collected 1717 | 228 458 397 125 276 52 181 Remotely . | . . . . . . . Salvage Created 3218 | . 963 40 642 1054 282 237 Parts 194 | . 64 7 39 55 20 9 Haulers Intercepted 6 | . 2 . . 4 . . Recyclers Shooed 3 | . 1 . . 2 . . Parts Field Recycled . | . . . . . . . Retrieved Matter . | . . . . . . . Parts Self-Destructed . | . . . . . . . Prevented . | . . . . . . . Parts Restored . | . . . . . . . Kills | -11 -10 -10 -9 -9 -9 -9 ------- Run | Yrd Mat Min Mat Sto Rec Scr Combat Hostiles Destroyed 62 | . 16 . 15 20 4 7 Guns 4 | . 3 . . . . 1 Cannons 44 | . 12 . 15 13 4 . AOE 13 | . . . . 7 . 6 Classes Destroyed 15 | . 8 1 2 . 1 3 Worker 3 | . 1 . 2 . . . Builder 1 | . . . . . 1 . Tunneler 2 | . . 2 . . . . Hauler 6 | . 2 . . 4 . . Recycler 3 | . 2 . . . 1 . Mechanic 1 | . 1 . . . . . Operator 2 | . 1 . 1 . . . Watcher 3 | . 3 . . . . . Swarmer 5 | . 3 . 2 . . . Grunt 33 | . 13 . 9 11 . . Duelist 2 | . . . 1 1 . . Sentry 15 | . . . 3 8 4 . Federalist 1 | . . . . . . 1 Guru 2 | . . . . . . 2 Scrapper 3 | . . . . . . 3 Thug 1 | . . . . . . 1 Best Kill Streak 7 | . 5 1 3 5 1 7 Combat Bots Only 7 | . 3 . 2 5 1 7 Max Kills in Single Turn 2 | . 2 1 1 2 1 1 Gunslinging . | . . . . . . . Exploded 2 | . . . . 2 . 1 Melee . | . . . . . . . Uniques/NPCs Destroyed . | . . . . . . . Combat | -11 -10 -10 -9 -9 -9 -9 -------- Run | Yrd Mat Min Mat Sto Rec Scr Hostile Shots Fired 259 | . 55 4 77 78 38 7 Missed 53 | . 7 1 12 18 11 4 Hits 206 | . 48 3 65 60 27 3 Melee 8 | . . . 4 4 . . Projectile 198 | . 48 3 61 56 27 3 Critical Strikes 9 | . . . 2 5 . 2 Damage Taken 2696 | . 519 25 585 960 395 212 Core 388 | . 68 7 90 100 100 23 Absorbed by Shields 248 | . . . 244 4 . . Ignored by Resistances 32 | . . 9 20 . . 3 Regen/Repaired (Parts) 129 | . 129 . . . . . Core Remaining (%) 97 | 100 . 95 . . . . Volleys Fired 227 | . 54 4 59 70 22 18 Largest 2 | . 2 1 1 1 1 1 Hottest 91 | . 91 75 75 75 68 33 Shots Fired 282 | . 107 6 59 70 22 18 Gun 72 | . 53 2 . 12 . 5 Cannon 192 | . 54 4 59 53 22 . Launcher 18 | . . . . 5 . 13 Special . | . . . . . . . Kinetic 69 | . 53 2 . 9 . 5 Thermal 195 | . 54 4 59 56 22 . Explosive 18 | . . . . 5 . 13 Electromagnetic . | . . . . . . . Robot Hit Streak 18 | . 13 4 15 18 10 4 Robot Miss Streak 4 | . 4 4 2 2 3 1 Penetration Max . | . . . . . . . Secondary Targets . | . . . . . . . Shots Hit Robots 187 | . 57 2 46 58 13 11 Core Hits 109 | . 33 2 18 26 4 26 Critical Kills 1 | . 1 . . . . . Critical Parts Destroyed 1 | . 1 . . . . . Critical Strikes 2 | . 2 . . . . . Meltdown 1 | . 1 . . . . . Destroy 1 | . 1 . . . . . Melee Attacks . | . . . . . . . Impact . | . . . . . . . Slashing . | . . . . . . . Piercing . | . . . . . . . Sneak Attacks . | . . . . . . . Combat Hostiles . | . . . . . . . Follow-up Attacks . | . . . . . . . Damage Inflicted 5461 | . 984 30 1252 1876 269 1050 Guns 619 | . 384 30 . 142 . 63 Cannons 3199 | . 589 . 1225 1121 264 . Explosions 1587 | . . . . 600 . 987 Melee . | . . . . . . . Ramming 56 | . 11 . 27 13 5 . Kinetic 568 | . 384 30 . 91 . 63 Thermal 3250 | . 589 . 1225 1172 264 . Explosive 1587 | . . . . 600 . 987 Electromagnetic . | . . . . . . . Impact . | . . . . . . . Slashing . | . . . . . . . Piercing . | . . . . . . . Highest Corruption 1 | . . . . 1 1 1 Average Corruption 1 | . . . . 1 1 1 Corruption Purged . | . . . . . . . Corruption Blocked . | . . . . . . . Effects 8 | . . . . 3 5 . Matter Fused 3 | . . . . 2 1 . Energy Discharges 2 | . . . . 1 1 . Data Loss (minor) 2 | . . . . . 2 . Alerts 1 | . . . . . 1 . Overload Shots . | . . . . . . . Overflow Damage 26 | . . . 5 21 . . Projectiles 15 | . . . 5 10 . . Explosions 11 | . . . . 11 . . Melee . | . . . . . . . Knockbacks 3 | . 1 . 2 . . . Impact 3 | . 1 . 2 . . . Kinetic . | . . . . . . . Secondary . | . . . . . . . Self-Inflicted Damage 153 | . . . . 97 . 56 Shots 4 | . . . . 2 . 2 Rammed 11 | . 3 . 5 3 . . Targets Rammed 13 | . 3 . 5 3 2 . Kicked . | . . . . . . . Crushed 2 | . . . . . 2 . Highest Temperature 499 | . 192 20 230 499 216 12 Average Temperature 75 | . 69 12 57 94 77 9 Received Heat Transfer 937 | . 234 . 190 329 135 49 Effects 3 | . . . . 3 . . Matter Decay 2 | . . . . 2 . . Damage (minor) 1 | . . . . 1 . . Siege Activations . | . . . . . . . Martial Activations . | . . . . . . . Shielding Activations . | . . . . . . . Robots Disrupted . | . . . . . . . Combat Hostiles . | . . . . . . . Robots Corrupted . | . . . . . . . Combat Hostiles . | . . . . . . . Parts Fried 1 | . . . . . . 1 Impact Corruptions . | . . . . . . . Robots Melted 1 | . 1 . . . . . Combat Hostiles 1 | . 1 . . . . . Parts Melted 8 | . 1 . 1 6 . . Heat Transferred 5291 | . 1221 . 1813 1776 481 . Parts Sabotaged . | . . . . . . . Parts Stolen . | . . . . . . . Parts Stripped . | . . . . . . . Power Chain Reactions . | . . . . . . . Alert | -11 -10 -10 -9 -9 -9 -9 ------- Run | Yrd Mat Min Mat Sto Rec Scr Maximum Alert Level 2 | . . . 1 2 1 . Low Security (%) 76 | 100 100 100 90 45 32 . Level 1 18 | . . . 9 25 67 . Level 2 4 | . . . . 28 . . Level 3 . | . . . . . . . Level 4 . | . . . . . . . Level 5 . | . . . . . . . High Security . | . . . . . . . Max Security . | . . . . . . . Peak Influence 460 | . 122 22 379 460 334 . Initial 158 | . . . 4 152 158 . Average 124 | . 35 1 139 264 228 . Influence Increases 2653 | . 565 32 809 757 490 . Destroy 0b10 Robot/C 1160 | . 320 20 340 400 80 . Destroy 0b10 Robot/NC 105 | . 50 10 15 20 10 . Destroy Leader 298 | . 80 . 90 128 . . Allied During Kill 11 | . . 2 9 . . . Successful Hack 73 | . 22 . 6 29 16 . Select Force Hacks 300 | . 60 . 60 60 120 . Disable Machine 45 | . . . . 45 . . Destroy Structure 58 | . 3 . 10 45 . . Lose Combat Pursuer 75 | . 30 . 15 30 . . Miscellaneous 528 | . . . 264 . 264 . Influence Decreases 2653 | . 562 23 460 711 671 226 Entered New Map 695 | . . 3 8 209 249 226 Time Decay 1762 | . 530 20 398 392 422 . Lost Part 156 | . 32 . 14 110 . . Lost Ally 40 | . . . 40 . . . Squads Dispatched 15 | . 5 1 6 3 . . Investigation 12 | . 4 1 4 3 . . Extermination . | . . . . . . . Reinforcement 3 | . 1 . 2 . . . Assault . | . . . . . . . Garrison . | . . . . . . . Intercept . | . . . . . . . Searches Triggered . | . . . . . . . Construction Impeded . | . . . . . . . Haulers Reinforced . | . . . . . . . Active Scanning Responses . | . . . . . . . Cargo Convoy Interrupts . | . . . . . . . Stealth | -11 -10 -10 -9 -9 -9 -9 --------- Run | Yrd Mat Min Mat Sto Rec Scr Distress Signals 5 | . 1 . 3 1 . . Communications Jammed . | . . . . . . . Distress Signals . | . . . . . . . Times Spotted 107 | . 28 3 25 24 4 23 Peak Tracking Total 11 | . 4 3 6 3 2 11 Tactical Retreats 4 | . 2 . 1 1 . . Traps | -11 -10 -10 -9 -9 -9 -9 ------- Run | Yrd Mat Min Mat Sto Rec Scr Traps Triggered 9 | . 7 . 2 . . . Indirectly . | . . . . . . . Trap Hack Attempts . | . . . . . . . Triggered . | . . . . . . . Disarmed . | . . . . . . . Reprogrammed . | . . . . . . . Reused . | . . . . . . . Traps Extracted . | . . . . . . . Installed . | . . . . . . . Triggered . | . . . . . . . Machines | -11 -10 -10 -9 -9 -9 -9 ---------- Run | Yrd Mat Min Mat Sto Rec Scr Machines Disabled 7 | . . . . 3 . 4 Max in Single Turn 2 | . . . . 2 . . Machines Repaired . | . . . . . . . Machines Dismantled . | . . . . . . . Machines Sabotaged . | . . . . . . . Overloaded Fab Kills . | . . . . . . . Hacking | -11 -10 -10 -9 -9 -9 -9 --------- Run | Yrd Mat Min Mat Sto Rec Scr Machines Accessed 38 | . 9 . 8 10 10 1 Terminals 25 | . 6 . 5 8 6 . Fabricators . | . . . . . . . Repair Stations 1 | . 1 . . . . . Recycling Units 10 | . 2 . 2 2 4 . Scanalyzers 1 | . . . 1 . . . Garrison Access . | . . . . . . . Total Hacks 112 | . 23 . 26 33 26 4 Successful 66 | . 13 . 13 19 17 4 Failed 45 | . 10 . 12 14 9 . Catastrophic 6 | . 2 . 1 2 1 . Database Lockouts 1 | . . . 1 . . . Manual 77 | . 20 . 19 19 19 . Terminals 78 | . 18 . 17 28 15 . Fabricators . | . . . . . . . Repair Stations 3 | . 3 . . . . . Recycling Units 20 | . 2 . 2 5 11 . Scanalyzers 7 | . . . 7 . . . Garrison Access . | . . . . . . . Terminal Hacks 15 | . 2 . . 7 2 4 Record 4 | . . . . . . 4 Prototype ID Bank 2 | . . . . 2 . . Open Door 1 | . . . . 1 . . Terminal Index 3 | . 1 . . 1 1 . Alert Level 1 | . . . . . 1 . Locate Traps 3 | . 1 . . 2 . . Security Status 1 | . . . . 1 . . Fabricator Hacks . | . . . . . . . Repair Station Hacks 2 | . 2 . . . . . Scan Component 1 | . 1 . . . . . Repair 1 | . 1 . . . . . Recycling Unit Hacks 8 | . . . . 2 6 . Report Inventory 6 | . . . . 2 4 . Retrieve Matter 1 | . . . . . 1 . Retrieve Components 1 | . . . . . 1 . Scanalyzer 5 | . . . 5 . . . Insert Component 1 | . . . 1 . . . Analyze 1 | . . . 1 . . . Retrieve Study 3 | . . . 3 . . . Garrison Access Hacks . | . . . . . . . Unauthorized Hacks 36 | . 9 . 8 10 9 . Terminals 26 | . 7 . 6 8 5 . Botnet 4 | . 1 . 2 1 . . Operators 3 | . 1 . 1 1 . . Skim 19 | . 5 . 3 6 5 . Fabricators . | . . . . . . . Repair Stations . | . . . . . . . Recycling Units 10 | . 2 . 2 2 4 . Tunnel 10 | . 2 . 2 2 4 . Scanalyzers . | . . . . . . . Garrison Access . | . . . . . . . Data Cores Recovered . | . . . . . . . Used . | . . . . . . . Hacking Detections 28 | . 6 . 6 10 6 . Full Trace Events 4 | . 1 . 2 1 . . Feedback Events 1 | . . . . 1 . . Corruption 1 | . . . . 1 . . Feedback Blocked . | . . . . . . . Robot Schematics Acquired . | . . . . . . . Robots Built . | . . . . . . . Authchips . | . . . . . . . Time . | . . . . . . . Total Robot Build Rating . | . . . . . . . Part Schematics Acquired 1 | . . . 1 . . . Parts Built . | . . . . . . . Authchips . | . . . . . . . Time . | . . . . . . . Total Part Build Rating . | . . . . . . . Part Studies Acquired 3 | . . . 3 . . . Parts Repaired 1 | . 1 . . . . . Time 26 | . 26 . . . . . Parts Recycled . | . . . . . . . Recycled Matter . | . . . . . . . Retrieved Matter . | . . . . . . . Retrieved Components 3 | . . . . . 3 . Parts Scanalyzed 1 | . . . 1 . . . Part Schematics Acquired 1 | . . . 1 . . . Parts Damaged . | . . . . . . . Bothacking | -11 -10 -10 -9 -9 -9 -9 ------------ Run | Yrd Mat Min Mat Sto Rec Scr Used RIF Installer . | . . . . . . . Robots Hacked . | . . . . . . . Non-combat . | . . . . . . . Combat . | . . . . . . . Robot Hacks Applied . | . . . . . . . Relay Couplers Released . | . . . . . . . Fabnet Peak Effective % . | . . . . . . . Robots Rewired . | . . . . . . . Allies Hacked . | . . . . . . . Hacks Repelled . | . . . . . . . Allies | -11 -10 -10 -9 -9 -9 -9 -------- Run | Yrd Mat Min Mat Sto Rec Scr Total Allies 3 | . . 2 . . . 1 Largest Group 2 | . . 2 2 . . 1 Highest-Rated Group 446 | . . 16 16 . . 446 Highest-Rated Ally 446 | . . 8 8 . . 446 Total Orders . | . . . . . . . Ally Attacks 62 | . . 2 18 . . 42 Total Damage 2916 | . . 11 165 . . 2740 Kills 22 | . . 1 2 . . 19 Allies Corrupted . | . . . . . . . Allies Melted . | . . . . . . . X0-1V1 Amusement Gains 37 | . 3 . . 10 . 24 Good Acts 26 | . . 19 3 1 3 . Bad Acts 25 | . . 10 6 4 5 . Intel | -11 -10 -10 -9 -9 -9 -9 ------- Run | Yrd Mat Min Mat Sto Rec Scr Active Infowar (turns) . | . . . . . . . Robot Analysis Total . | . . . . . . . Derelict Logs Recovered . | . . . . . . . Drone Launches . | . . . . . . . Drone Recoveries . | . . . . . . . Exploration | -11 -10 -10 -9 -9 -9 -9 ------------- Run | Yrd Mat Min Mat Sto Rec Scr Turns Passed 7023 | 70 2344 246 959 930 1026 1448 Spaces Moved 3728 | 47 1181 141 463 441 583 872 Core 17 | 14 3 . . . . . Treads 3711 | 33 1178 141 463 441 583 872 Legs . | . . . . . . . Wheels . | . . . . . . . Hover . | . . . . . . . Flight . | . . . . . . . Fastest Speed 50 | 50 160 160 160 160 160 160 Average Speed 163 | 127 170 160 168 160 160 160 Slowest Speed 400 | 160 400 160 240 160 160 160 Overloaded Moves . | . . . . . . . Propulsion Burnouts . | . . . . . . . Robots Hopped . | . . . . . . . Potential Cave-ins . | . . . . . . . Cave-ins Triggered . | . . . . . . . Exploration Rate (%) 55 | 3 96 37 34 63 94 62 Regions Visited 6 Branch Regions 4 Pre-discovered Areas 16 | . 4 1 2 5 4 . Known Exits Taken 4 | . . 1 1 1 1 . Unknown Exits Taken 2 | 1 1 . . . . . Scrap Searched 3 | . . . . . . 3 Spaces Dug . | . . . . . . . Terrain Destroyed 114 | . . . 8 59 . 47 Melee . | . . . . . . . Projectile 15 | . . . 8 7 . . AOE 99 | . . . . 52 . 47 Terrain Rammed . | . . . . . . . Walls Destroyed . | . . . . . . . Machines Disabled . | . . . . . . . Actions | -11 -10 -10 -9 -9 -9 -9 --------- Run | Yrd Mat Min Mat Sto Rec Scr Total 4366 | 57 1409 158 580 595 655 912 Wait 209 | . 94 . 32 41 41 1 Move 3722 | 46 1180 140 462 440 582 872 Hop . | . . . . . . . Pick Up 79 | 7 34 6 7 15 2 8 Fast Attach 7 | . 5 . 2 . . . Attach 47 | 4 18 1 6 14 2 2 Detach 8 | . 3 . 1 1 2 1 Swap 21 | . 7 3 2 7 . 2 Drop 33 | . 11 4 4 4 2 8 Fire 227 | . 54 4 59 70 22 18 Melee . | . . . . . . . Ram . | . . . . . . . Kick . | . . . . . . . Crush 13 | . 3 . 5 3 2 . Escape Stasis . | . . . . . . . Rewire . | . . . . . . . Trap . | . . . . . . . Miscellaneous . | . . . . . . . Route ------- -11/Scrapyard -10/Materials (discovered 6 exits: *Mat x3 / [*Min x2] / *Sub) -10/Mines (discovered 3 exits: *Mat x2 / Sub) -9/Materials (discovered 5 exits: *Mat x2 / [*Min] / *Sto x2) -9/Storage (discovered 2 exits: *Mat / *Rec) -9/Recycling (discovered 2 exits: [*Fac] / *Scr) -9/Scraptown (discovered 1 exit: [*Fac]) History --------- Turn | Location | Event 6 | -11/Scrapyard | Discovered new exit (range 15) 71 | -11/Scrapyard | Entered Materials 255 | -10/Materials | Discovered new exit (range 16) 306 | -10/Materials | Build established: Mutant 481 | -10/Materials | Discovered new exit (range 16) 677 | -10/Materials | Discovered new exit (range 8) 1285 | -10/Materials | Discovered new exit (range 9) 1638 | -10/Materials | Discovered new exit (range 15) 1955 | -10/Materials | Discovered new exit (range 7) 2015 | -10/Materials | Learned 2 Mines zone layouts 2034 | -10/Materials | Repaired Lgt. Treads 2053 | -10/Materials | Learned location of Mines (-9) 2093 | -10/Materials | Learned Storage trap positions 2097 | -10/Materials | Learned 4 Subcaves zone layouts 2098 | -10/Materials | Learned location of 2 exits from Materials 2121 | -10/Materials | Learned location of Recycling (-9) 2147 | -10/Materials | Learned Storage garrison access intel 2325 | -10/Materials | Prayed at D.C.S.S. Altar Unit 2334 | -10/Materials | Build established: Scavenger-Mutant 2415 | -10/Materials | Entered Mines 2416 | -10/Mines | Learned location of Storage (-9) 2416 | -10/Mines | Identified exit to Materials 2417 | -10/Mines | EM resistance permanently improved by X0-1V1 (+10%; -100 max core) 2427 | -10/Mines | X0-1V1 activates XOMVISION 2459 | -10/Mines | X0-1V1 revealed exit location to -9/Materials 2540 | -10/Mines | Identified exit to Subcaves 2540 | -10/Mines | X0-1V1 revealed exit location to -10/Subcaves 2556 | -10/Mines | X0-1V1 opened Sealed Doors 2559 | -10/Mines | Met a Derelict shopkeep closing up shop 2561 | -10/Mines | X0-1V1 sent someone to fix up the mess you leave 2593 | -10/Mines | X0-1V1 vaporized surrounding terrain (radius 16) 2619 | -10/Mines | X0-1V1 mutated your Weapon slot to Utility slot 2647 | -10/Mines | X0-1V1 sent allied G-34 Mercenary (x2) 2651 | -10/Mines | X0-1V1 activates XOMVISION 2652 | -10/Mines | Build established: Mutant 2661 | -10/Mines | Entered Materials 2661 | -9/Materials | Accompanied by 2 allies 2661 | -9/Materials | Evolved 2 slots: Propulsion x1, Utility x1 2662 | -9/Materials | X0-1V1 sent you into danger 2662 | -9/Materials | Identified exit to Storage 2663 | -9/Materials | Identified exit to Materials 2747 | -9/Materials | Discovered new exit (range 9) 3237 | -9/Materials | Ranged accuracy permanently improved by X0-1V1 (+5%; -50 max core) 3388 | -9/Materials | Central database locked down 3398 | -9/Materials | Discovered exit to Materials (range 13) 3420 | -9/Materials | X0-1V1 foreshadows a heat wave 3527 | -9/Materials | X0-1V1 added 0b10 threat records associated with you (major) 3564 | -9/Materials | X0-1V1 announced a LAN party 3574 | -9/Materials | Ambient heat levels rising (+10) 3620 | -9/Materials | Entered Storage 3621 | -9/Storage | Loaded intel: 17 trap records 3622 | -9/Storage | Loaded intel: 1 garrison access location 3780 | -9/Storage | Propulsion slot count permanently improved by X0-1V1 (+1) 4122 | -9/Storage | Learned Materials trap positions 4264 | -9/Storage | Lost 6 parts (2n3u1w) 4268 | -9/Storage | Identified exit to Recycling 4268 | -9/Storage | Core integrity fell below 50% 4299 | -9/Storage | Learned 4 Materials zone layouts 4301 | -9/Storage | Discovered exit to Materials (range 5) 4319 | -9/Storage | Learned Materials garrison access intel 4327 | -9/Storage | Learned Materials emergency access door positions 4345 | -9/Storage | Learned location of Zion (-7) 4371 | -9/Storage | Learned 4 Recycling zone layouts 4407 | -9/Storage | Learned location of 1 exit from Storage 4476 | -9/Storage | X0-1V1 mutated your Utility slot to Propulsion slot 4547 | -9/Storage | Used back door to open Recycling access 4550 | -9/Storage | Entered Recycling 4551 | -9/Recycling | Identified exit to Scraptown 4597 | -9/Recycling | X0-1V1 mutated your Utility slot to Power slot 4880 | -9/Recycling | X0-1V1 added 0b10 threat records associated with you (major) 5184 | -9/Recycling | Discovered new exit (range 9) 5248 | -9/Recycling | Build established: Scavenger-Mutant 5287 | -9/Recycling | X0-1V1 sent you into danger 5319 | -9/Recycling | Core integrity fell below 20% 5474 | -9/Recycling | Learned Materials terminal intel 5520 | -9/Recycling | Learned Materials emergency access door positions 5536 | -9/Recycling | Scanned before Scraplab entrance 5554 | -9/Recycling | Learned Storage trap positions 5560 | -9/Recycling | Entered Scraplab 5576 | -9/Recycling | Entered Scraptown 5576 | -9/Scraptown | System corruption cleaned by C-Scrubber 5797 | -9/Scraptown | Visited TADAMA 5816 | -9/Scraptown | Visited Junk Repository 5861 | -9/Scraptown | Visited Shadow of the Wyrm 5936 | -9/Scraptown | Discovered new exit (range 6) 6142 | -9/Scraptown | Visited UFD Registry 6142 | -9/Scraptown | Registered with UFD as "Metaunit" 6203 | -9/Scraptown | Visited Derelict Rescue Squad 6248 | -9/Scraptown | Visited Infowarlord's Domain 6260 | -9/Scraptown | Found Exp. Terrain Scanner 6297 | -9/Scraptown | Visited Scrap Suit Storage 6315 | -9/Scraptown | Found Scrap Suit 6343 | -9/Scraptown | Visited Abandonware Association 6368 | -9/Scraptown | Learned abandonware demo "REBOOT5.EXE" 6413 | -9/Scraptown | Visited Scrapoid Pod Storage 6501 | -9/Scraptown | Visited A0-MCA Data Center 6510 | -9/Scraptown | Given an A+ rating by A0-MCA 6516 | -9/Scraptown | Found A0-MCA's Component Scanner 6544 | -9/Scraptown | Visited Botcube Research 6554 | -9/Scraptown | Found Lrg. Botcube 6584 | -9/Scraptown | Visited Junk Repository 6606 | -9/Scraptown | Visited Supply Room 6968 | -9/Scraptown | X0-1V1 brought Wyrm Statue to life 6968 | -9/Scraptown | Attacked by Scraptown defenders 7024 | -9/Scraptown | Destroyed by BW-47X(j) with Overtuned Pulse Rifle Last Messages --------------- 87-N30(j) destroyed. 7G-PU3(p) destroyed. 1S-2SY(g) destroyed. 9Q-1L8(j) destroyed. FX-765(M) destroyed. QK-RSO(j) destroyed. The unstable cave ceiling collapses. Slug penetrates Chaos Wyrm. Z7-62D(j) heat damages Mak. Salvage Targeting Computer. The unstable cave ceiling collapses. 2Z-NWW(E) IFF system glitched. ZX-3RZ(c) destroyed. Slug penetrates Chaos Wyrm. 2Z-NWW(E) destroyed. Z7-62D(j) destroyed. 3U-I8T(x) destroyed. Acquired 129 matter. Critical hit (Burn: +50). X0-1V1 cackles wildly! Map ----- +----------------------------------------------------+ | ?????# #?????????## ##????????#" [%"#????????? | | ????"" ""???###???# #########?#" =""#????????? | | ?? " " ?? ??# """"""""#?#" !"""#????????? | | #" " " "### ### " ""#?#" """#????????? | | #" " " "#"" """ "#?#"""""""#????????? | | #""""" """""#" """ " ""#?#########????????? | | ###### ######" " """"""""#??????????????????? | | ?????" "????#" ##"""####??????????????????? | | ?????" "????#" "" " ##############?????????????? | | ????? ????#" " #??# #?????????????? | | ?????" "????#"""""" ##?# #?????????????? | | ?????" "????####### # ## """"" #?????????????? | | ?????# #?????????? # """"" ###########???? | | ?????# ########## c """" #! # #[/#???? | | ? [ # #!/# # !#???? | | ? ==% # # #???? | | ?????############ *%!! #???? | | ????????????????# ! #???? | | ????????????????## # % ### ##########? | | ????????????????# #? | | ???????????? ??# % %[ #? | | ???????????" " # == #? | | ?????????????# DD #? | | ?????????????# %DD% [% g #? | | ?????????????# =!g !!% #? | | ?????????????# =% =@!% ## #? | | ?????????????# [ !/ #?#! #? | | ?????????????# %%! ###?# #? | | ????????????" # ===% #???# #? | | ????????????????# # %* = ##???# #? | | ????????????????# j ## [= #????# ## | | ????????????????# ### ##????# "" | | ????????????????# #?# ##?????# "" | | ????????????????# ??## # ###??????# "" | | ????????????????# ???#####????????# ## | | ????????????????# ????????????????# ## | | ???????????????? ????????????????# | | ????????????????#? ????????????????# | | ???????????????????? ?????????????????# | | ??????????????????????????????????????# | | ?????????????????????????############## | | ??????????????????????? | | ??????????????????????? | | ??????????????????????? | | ???????????????????????? | | ???????????????????????? | | ???????????????????????? | | ??????????? ??????????? | | ??????????? ?????????? | | ??????????? #??????????? ####### ########## ## | +----------------------------------------------------+ Best States ------------- Heat Dissipation 39 Energy Generation 23 Energy Capacity 1080 Matter Stores 700 Matter Capacity 700 Sight Range 22 Terrain Scan Density 10 Armor Coverage 150 Resistance: KI 23 Resistance: EM 10 Evasion (%) 50 Recoil Reduction 5 Offensive Hacking 10 Item Schematics ----------------- Hacking Suite | -9/Materials | Scanalyzed Robot Schematics ------------------ None Fabricated ------------ Nothing Repaired ---------- Lgt. Treads | 7% | -10/Materials Studied --------- Imp. Ion Engine | -9/Materials | Hacked Lgt. Treads | -9/Materials | Hacked Rocket Launcher | -9/Materials | Hacked Alien Tech Used ----------------- None Achievements -------------- None Challenges ------------ None Game ------ Seed CompactImprinterDerivative Manual? 0 Play Time 00:51:22 Cumulative 52.5 hours Start 2026.07.20 @ 19:23:31 End 2026.07.20 @ 21:23:48 Sessions 5 Manual Loads 0 Difficulty Rogue Special Mode None Game No. 40 Rogue 39 Adventurer 1 Explorer 0 Win Type - Total 2 Types 1/0/0/1/0/0/0/0/0/0 Lore% 36 Gallery% 41 Achievement% 43 Wizard Run 0 Options --------- Layout 1 ASCII 0 Keyboard 0 Movement Numpad Keybinds 0 Fullscreen 1 Font 32/SmallcapsGlow Map View 50x35 Zoom Use 0% Tactical HUD 0 Map Filters NONE Filters NONE Steam 1 RUN: 49ea9785-5584-46a3-a483-46a9ce61238b